bitfinex/quotes_BTCUSD_20250512
["timestamp","ask_amount","ask_price","bid_price","bid_amount"]
[1747039332685,0.0333,104430.0,104420.0,1.36927049]
[1747039332920,0.0333,104430.0,104420.0,1.45500749]
[1747039333578,0.0333,104430.0,104420.0,1.46954834]
[1747039334648,0.002,104430.0,104420.0,1.50658709]
[1747039334866,0.002,104470.0,104440.0,0.01454085]
[1747039335103,0.00214687,104470.0,104460.0,0.56017886]
[1747039335319,0.00214687,104470.0,104460.0,1.41278216]
[1747039335532,0.03394687,104470.0,104460.0,1.41278216]
[1747039335766,0.03394687,104470.0,104460.0,1.39805016]
[1747039336613,0.03394687,104470.0,104460.0,1.39905016]
[1747039336832,0.03394687,104470.0,104460.0,0.65703316]
[1747039337714,0.03394687,104470.0,104460.0,0.80483316]
[1747039337921,0.03394687,104470.0,104460.0,0.65703316]
[1747039338155,0.03394687,104470.0,104460.0,0.80507316]
[1747039338364,0.0530901,104470.0,104460.0,0.65703316]
[1747039338584,0.0530901,104470.0,104460.0,0.80587316]
[1747039338835,0.07223407,104470.0,104460.0,0.65703325]
[1747039339048,0.0530901,104470.0,104460.0,0.66660565]
[1747039339255,0.05309001,104470.0,104460.0,0.66660565]
[1747039339467,0.04351835,104470.0,104460.0,0.66660565]
[1747039339700,0.03394687,104470.0,104460.0,0.66660565]
[1747039339914,0.03394687,104470.0,104460.0,0.81588565]
[1747039340546,0.04351826,104470.0,104460.0,0.81588565]
[1747039340753,0.03394687,104470.0,104460.0,0.81588565]
[1747039342487,0.03394687,104470.0,104460.0,0.81660565]
[1747039342717,0.05308992,104470.0,104460.0,0.66660565]
[1747039342933,0.03394687,104470.0,104460.0,0.66660565]
[1747039343150,0.03394687,104470.0,104460.0,0.81652565]
[1747039346654,0.03394687,104470.0,104460.0,0.66660565]
[1747039346877,0.03394687,104470.0,104460.0,0.81944565]
[1747039348791,0.03394687,104470.0,104460.0,2.00650565]
[1747039349417,0.03394687,104470.0,104460.0,1.92486665]
[1747039351805,0.00214687,104470.0,104460.0,1.9394075]
[1747039352027,0.01744687,104470.0,104460.0,1.9394075]
[1747039352257,0.03304687,104470.0,104460.0,1.5687075]
[1747039352473,0.03304687,104470.0,104460.0,1.5677075]
[1747039352678,0.03304687,104470.0,104460.0,1.5737075]
[1747039353533,0.00214687,104470.0,104460.0,1.16321618]
[1747039353747,0.00214687,104470.0,104460.0,3.63988718]
[1747039354239,0.00214687,104470.0,104460.0,3.63788718]
[1747039355118,0.00214687,104470.0,104460.0,3.63988718]
[1747039357252,0.00214687,104470.0,104460.0,3.3176575]
[1747039357458,0.00214687,104470.0,104460.0,3.63988718]
[1747039358288,0.03264687,104470.0,104460.0,3.10727318]
[1747039358500,0.03264687,104470.0,104460.0,3.08213518]
[1747039358931,0.00214687,104470.0,104460.0,3.41936486]
[1747039359147,0.01726775,104490.0,104480.0,0.2201367]
[1747039359366,0.03346775,104490.0,104480.0,4.16358136]
[1747039359585,0.03346775,104490.0,104480.0,3.18594168]
[1747039359804,0.03346775,104490.0,104480.0,2.014796]
[1747039360016,0.03346775,104490.0,104480.0,1.87721168]
[1747039360225,0.03346775,104490.0,104480.0,1.33329368]
[1747039360443,0.02546775,104490.0,104480.0,1.33329368]
[1747039362221,0.02546775,104490.0,104480.0,1.011064]
[1747039362434,0.02546775,104490.0,104480.0,1.33329368]
[1747039364488,0.02546775,104490.0,104480.0,1.011064]
[1747039364701,0.02546775,104490.0,104480.0,1.33329368]
[1747039367000,0.02546775,104490.0,104480.0,1.011064]
[1747039367202,0.02546775,104490.0,104480.0,1.29641168]
[1747039367555,0.02546775,104490.0,104480.0,1.123902]
[1747039367762,0.02546775,104490.0,104480.0,1.39584868]
[1747039368185,0.02546775,104490.0,104480.0,1.39593868]
[1747039368600,0.02546775,104490.0,104480.0,1.073709]
[1747039368797,0.02546775,104490.0,104480.0,1.39593868]
[1747039369448,0.02546775,104490.0,104480.0,1.073709]
[1747039370101,0.23601282,104490.0,104480.0,0.55356614]
[1747039370310,0.06374679,104490.0,104480.0,0.5631367]
[1747039370515,0.05417678,104490.0,104480.0,0.5631367]
[1747039371340,0.04460704,104490.0,104480.0,0.5631367]
[1747039371539,0.04460677,104490.0,104480.0,0.5631367]
[1747039372247,0.02546775,104490.0,104480.0,0.98122068]
[1747039373305,0.02546775,104490.0,104480.0,0.658991]
[1747039373745,0.02546775,104490.0,104480.0,0.98122068]
[1747039374709,0.02546775,104490.0,104480.0,0.658991]
[1747039375200,0.02546775,104490.0,104480.0,0.98122068]
[1747039376530,0.02546775,104490.0,104480.0,0.658991]
[1747039376744,0.02546775,104490.0,104480.0,0.98122068]
[1747039379383,0.04173477,104490.0,104480.0,0.658991]
[1747039379623,0.0513047,104490.0,104480.0,0.658991]
[1747039379824,0.070445,104490.0,104480.0,0.57270755]
[1747039380021,0.23314174,104490.0,104480.0,0.53442419]
[1747039380447,0.22357173,104490.0,104480.0,0.54399539]
[1747039380594,0.22357173,104490.0,104480.0,0.5535665]
[1747039380813,0.22357173,104490.0,104480.0,0.343]
[1747039381609,0.54580141,104490.0,104480.0,0.343]
[1747039381851,0.22718611,104470.0,104460.0,0.21460664]
[1747039382051,0.22718611,104470.0,104460.0,0.22417922]
[1747039382052,0.23675823,104470.0,104460.0,0.22417922]
[1747039382247,0.25235823,104470.0,104460.0,0.56417922]
[1747039382477,0.25235823,104470.0,104460.0,0.22417922]
[1747039382682,0.25235823,104470.0,104460.0,0.56417922]
[1747039383136,0.0513436,104470.0,104460.0,0.57375162]
[1747039383362,0.0513436,104470.0,104460.0,0.9918356]
[1747039383363,0.04177139,104470.0,104460.0,0.9918356]
[1747039383573,0.0609149,104470.0,104460.0,0.9948356]
[1747039383748,0.07048684,104470.0,104460.0,0.9477656]
[1747039383942,0.07048684,104470.0,104460.0,0.62653592]
[1747039384186,0.27150138,104470.0,104460.0,0.344]
[1747039384387,0.24278648,104470.0,104460.0,0.344]
[1747039387254,0.24278648,104470.0,104460.0,0.004]
[1747039387664,0.24278648,104470.0,104460.0,0.48336681]
[1747039387869,0.24278648,104470.0,104460.0,0.20503379]
[1747039388521,0.24278648,104470.0,104460.0,0.21460655]
[1747039388730,0.34321454,104470.0,104460.0,0.20503379]
[1747039388942,0.34321454,104470.0,104460.0,0.21460664]
[1747039389403,0.33364251,104470.0,104460.0,0.004]
[1747039389835,0.33364251,104470.0,104460.0,0.21460673]
[1747039390045,0.33364251,104470.0,104460.0,0.21460683]
[1747039390463,0.33364251,104470.0,104460.0,0.004]
[1747039390673,0.36235768,104470.0,104460.0,0.82336681]
[1747039390890,0.36235768,104470.0,104460.0,0.82336699]
[1747039391093,0.16134323,104470.0,104460.0,0.94793894]
[1747039391295,0.17091517,104470.0,104460.0,0.94793894]
[1747039391698,0.15177148,104470.0,104460.0,0.94793894]
[1747039391996,0.18048665,104470.0,104460.0,0.94793894]
[1747039392303,0.18048665,104470.0,104460.0,0.67917859]
[1747039392542,0.1804872,104470.0,104460.0,0.67917859]
[1747039393011,0.37192971,104470.0,104460.0,0.66960619]
[1747039393255,0.35278648,104470.0,104460.0,0.4398543]
[1747039393467,0.34321454,104470.0,104460.0,0.344]
[1747039393715,0.0328,104460.0,104450.0,0.22040116]
[1747039393944,0.04237276,104460.0,104450.0,0.58516268]
[1747039394512,0.05194507,104460.0,104450.0,0.58516268]
[1747039394801,0.0519447,104460.0,104450.0,0.58516268]
[1747039395054,0.0328,104460.0,104450.0,0.58516268]
[1747039395515,0.0174,104460.0,104450.0,0.58516268]
[1747039395744,0.0174,104460.0,104450.0,0.92516268]
[1747039396214,0.0184,104460.0,104450.0,0.92516268]
[1747039398913,0.002,104460.0,104450.0,2.35806268]
[1747039399142,0.002,104460.0,104450.0,2.21051168]
[1747039399355,0.002,104460.0,104450.0,2.36483168]
[1747039399559,0.002,104460.0,104450.0,2.36783168]
[1747039399770,0.002,104460.0,104450.0,2.36483168]
[1747039401029,0.002,104460.0,104450.0,2.51583168]
[1747039401235,0.0192,104490.0,104470.0,0.80977434]
[1747039401459,0.0355,104490.0,104480.0,0.9256887]
[1747039401672,0.0355,104490.0,104480.0,0.655991]
[1747039401878,0.0355,104490.0,104480.0,0.92475135]
[1747039402503,0.04506956,104490.0,104480.0,0.92475135]
[1747039402927,0.04506956,104490.0,104480.0,0.92575135]
[1747039403426,0.0355,104490.0,104480.0,0.92575135]
[1747039406762,0.0355,104490.0,104480.0,2.0943107]
[1747039407211,0.0355,104490.0,104480.0,1.46756435]
[1747039408263,0.0355,104490.0,104480.0,1.61196435]
[1747039408727,0.0203,104490.0,104480.0,1.8807247]
[1747039409154,0.0203,104490.0,104480.0,1.61196435]
[1747039409328,0.0363,104490.0,104480.0,1.61196435]
[1747039409533,0.0363,104490.0,104480.0,1.21523135]
[1747039409735,0.0363,104490.0,104480.0,2.10007835]
[1747039410507,0.0363,104490.0,104480.0,1.21523135]
[1747039410721,0.0554392,104490.0,104480.0,0.316991]
[1747039410925,0.04586946,104490.0,104480.0,0.656991]
[1747039411158,0.05543911,104490.0,104480.0,0.92575135]
[1747039411610,0.04586946,104490.0,104480.0,0.92575135]
[1747039411811,0.05543902,104490.0,104480.0,0.92575135]
[1747039412028,0.06500885,104490.0,104480.0,0.92475135]
[1747039412225,0.07557886,104490.0,104480.0,0.82889724]
[1747039412433,0.07557886,104490.0,104480.0,0.8384678]
[1747039413502,0.07557877,104490.0,104480.0,0.8384678]
[1747039414292,0.08514888,104490.0,104480.0,0.8384678]
[1747039414640,0.07557886,104490.0,104480.0,0.8384678]
[1747039414839,0.06600885,104490.0,104480.0,0.8384678]
[1747039415042,0.07557877,104490.0,104480.0,0.8384678]
[1747039415250,0.06600885,104490.0,104480.0,0.8384678]
[1747039416357,0.0373,104490.0,104480.0,1.20308245]
[1747039416567,0.0373,104490.0,104480.0,0.9343221]
[1747039418826,0.0373,104490.0,104480.0,1.20308245]
[1747039419246,0.0373,104490.0,104480.0,0.9343221]
[1747039419454,0.0373,104490.0,104480.0,2.10623145]
[1747039419455,0.0213,104490.0,104480.0,2.10623145]
[1747039419999,0.0213,104490.0,104480.0,1.20308245]
[1747039420201,0.0213,104490.0,104480.0,2.89465645]
[1747039420651,0.005,104490.0,104480.0,2.89465645]
[1747039421410,0.005,104490.0,104480.0,1.65289175]
[1747039421619,0.005,104490.0,104480.0,2.14793645]
[1747039422039,0.005,104490.0,104480.0,2.14732551]
[1747039422241,0.0206,104490.0,104480.0,1.69690751]
[1747039422904,0.0364,104490.0,104480.0,1.42490751]
[1747039423117,0.0364,104490.0,104480.0,1.12145263]
[1747039423340,0.0364,104490.0,104480.0,1.07809663]
[1747039423556,0.0364,104490.0,104480.0,0.93401663]
[1747039423790,0.04596965,104490.0,104480.0,0.93401663]
[1747039424020,0.0364,104490.0,104480.0,0.93401663]
[1747039424211,0.0364,104490.0,104480.0,0.66556175]
[1747039424416,0.0364,104490.0,104480.0,0.93401663]
[1747039424910,0.0364,104490.0,104480.0,0.93410575]
[1747039425328,0.04596956,104490.0,104480.0,0.93410575]
[1747039425535,0.05553939,104490.0,104480.0,0.93410575]
[1747039425745,0.0364,104490.0,104480.0,0.93410575]
[1747039425964,0.06510912,104490.0,104480.0,0.56970745]
[1747039426172,0.0555392,104490.0,104480.0,0.83825145]
[1747039426592,0.05553911,104490.0,104480.0,0.83825145]
[1747039427604,0.04596946,104490.0,104480.0,0.83825145]
[1747039429653,0.0364,104490.0,104480.0,0.83825145]
[1747039429987,0.05553911,104490.0,104480.0,0.83825145]
[1747039430261,0.04596946,104490.0,104480.0,0.83825145]
[1747039430421,0.0364,104490.0,104480.0,0.83825145]
[1747039431258,0.04596956,104490.0,104480.0,0.83825145]
[1747039431458,0.04596946,104490.0,104480.0,0.83825145]
[1747039431683,0.0364,104490.0,104480.0,0.83825145]
[1747039431880,0.04596956,104490.0,104480.0,0.83825145]
[1747039432055,0.04596946,104490.0,104480.0,0.83825145]
[1747039432797,0.0555392,104490.0,104480.0,0.83825145]
[1747039433017,0.0364,104490.0,104480.0,0.83825145]
[1747039433225,0.04596946,104490.0,104480.0,0.83825145]
[1747039433444,0.0364,104490.0,104480.0,1.27880759]
[1747039433657,0.0364,104490.0,104480.0,2.45623375]
[1747039433878,0.0364,104490.0,104480.0,2.34858175]
[1747039434109,0.0364,104490.0,104480.0,1.82836875]
[1747039434748,0.0364,104490.0,104480.0,1.41039875]
[1747039434979,0.0364,104490.0,104480.0,1.24299275]
[1747039435227,0.0364,104490.0,104480.0,0.97444875]
[1747039435445,0.0364,104490.0,104480.0,1.25289575]
[1747039435662,0.0364,104490.0,104480.0,1.52143975]
[1747039436042,0.0364,104490.0,104480.0,1.25289575]
[1747039437232,0.0364,104490.0,104480.0,0.98435175]
[1747039437438,0.0364,104490.0,104480.0,1.25289575]
[1747039438904,0.05553994,104490.0,104480.0,0.01914177]
[1747039439140,0.0432796,104490.0,104480.0,0.2201368]
[1747039439368,0.0432796,104490.0,104480.0,0.22970736]
[1747039439593,0.08404989,104490.0,104480.0,0.4886808]
[1747039439806,0.0744796,104490.0,104480.0,0.81911014]
[1747039440027,0.08404989,104490.0,104480.0,0.83825155]
[1747039440274,0.0744796,104490.0,104480.0,0.83825155]
[1747039440472,0.07447951,104490.0,104480.0,0.84782211]
[1747039441100,0.26588538,104490.0,104480.0,0.83825155]
[1747039441377,0.07447951,104490.0,104480.0,0.84782211]
[1747039441609,0.27545567,104490.0,104480.0,0.84782211]
[1747039441823,0.07448024,104490.0,104480.0,0.83825155]
[1747039442042,0.06490995,104490.0,104480.0,0.84782211]
[1747039442475,0.07448015,104490.0,104480.0,0.84782211]
[1747039442702,0.26827867,104490.0,104480.0,0.34]
[1747039442927,0.24674618,104490.0,104480.0,0.5409953]
[1747039443371,0.24674618,104490.0,104480.0,0.55056632]
[1747039443600,0.24674618,104490.0,104480.0,0.56013716]
[1747039444000,0.24674618,104490.0,104480.0,0.56970791]
[1747039444236,0.24674618,104490.0,104480.0,0.54099539]
[1747039444444,0.24674618,104490.0,104480.0,0.5505665]
[1747039444648,0.22760587,104490.0,104480.0,0.34]
[1747039446472,0.22760587,104490.0,104480.0,0.53142419]
[1747039446738,0.22760587,104490.0,104480.0,0.54099539]
[1747039446966,0.22760587,104490.0,104480.0,0.81911032]
[1747039447201,0.22760587,104490.0,104480.0,0.54099539]
[1747039447861,0.22760587,104490.0,104480.0,0.34]
[1747039448513,0.22760587,104490.0,104480.0,0.5409953]
[1747039448714,0.22760587,104490.0,104480.0,0.53142419]
[1747039448935,0.0191436,104470.0,104450.0,0.61476067]
[1747039449158,0.00957166,104470.0,104460.0,0.58457716]
[1747039449423,0.01914305,104470.0,104460.0,0.58457716]
[1747039449634,0.22015361,104480.0,104470.0,0.54101445]
[1747039449839,0.22015361,104480.0,104470.0,0.81913011]
[1747039450049,0.00957056,104480.0,104470.0,0.82870159]
[1747039450262,0.0314,104480.0,104470.0,0.82870159]
[1747039450486,0.0505414,104480.0,104470.0,0.82870159]
[1747039451573,0.0505414,104480.0,104470.0,0.56115759]
[1747039451802,0.06011242,104480.0,104470.0,0.82970159]
[1747039452478,0.25153661,104480.0,104470.0,0.54201445]
[1747039452682,0.26110772,104480.0,104470.0,0.5515863]
[1747039452889,0.26110772,104480.0,104470.0,0.341]
[1747039453101,0.24196632,104480.0,104470.0,0.341]
[1747039453525,0.24196632,104480.0,104470.0,0.54201454]
[1747039453729,0.24196632,104480.0,104470.0,0.56015796]
[1747039454116,0.24296632,104480.0,104470.0,0.55058639]
[1747039454355,0.24296632,104480.0,104470.0,0.56972962]
[1747039454566,0.05154122,104480.0,104470.0,0.83827362]
[1747039454779,0.04197047,104480.0,104470.0,0.83827362]
[1747039454987,0.06111187,104480.0,104470.0,0.83827362]
[1747039455395,0.07068289,104480.0,104470.0,0.83827362]
[1747039455870,0.0324,104480.0,104470.0,0.83827362]
[1747039456054,0.04197056,104480.0,104470.0,0.83827362]
[1747039456253,0.05154131,104480.0,104470.0,0.83827362]
[1747039456464,0.04197056,104480.0,104470.0,0.83827362]
[1747039456668,0.01510306,104480.0,104470.0,0.83827362]
[1747039457334,0.02467381,104480.0,104470.0,0.83827362]
[1747039457542,0.02467372,104480.0,104470.0,0.93412792]
[1747039457746,0.0342441,104480.0,104470.0,0.93412792]
[1747039458117,0.0055325,104480.0,104470.0,0.59412792]
[1747039458318,0.001,104480.0,104470.0,0.59412792]
[1747039458522,0.02014122,104480.0,104470.0,0.32558392]
[1747039458723,0.01057047,104480.0,104470.0,0.32558392]
[1747039458905,0.001,104480.0,104470.0,0.32558392]
[1747039459112,0.01057047,104480.0,104470.0,0.59412792]
[1747039459348,0.001,104480.0,104470.0,0.59412792]
[1747039459550,0.017,104480.0,104470.0,0.59412792]
[1747039460108,0.017,104480.0,104470.0,0.66558392]
[1747039460303,0.02657056,104480.0,104470.0,0.93412792]
[1747039460583,0.017,104480.0,104470.0,0.93412792]
[1747039460767,0.02657056,104480.0,104470.0,0.93412792]
[1747039460982,0.06221215,104480.0,104470.0,0.66558392]
[1747039461213,0.06221206,104480.0,104470.0,0.66558392]
[1747039461436,0.06221197,104480.0,104470.0,0.66558392]
[1747039461663,0.08135392,104480.0,104470.0,0.66558392]
[1747039461879,0.07178281,104480.0,104470.0,0.56972962]
[1747039462491,0.06221197,104480.0,104470.0,0.56972962]
[1747039463271,0.0717829,104480.0,104470.0,0.56972962]
[1747039463483,0.06221197,104480.0,104470.0,0.56972962]
[1747039464084,0.0717829,104480.0,104470.0,0.56972962]
[1747039464333,0.06221197,104480.0,104470.0,0.56972962]
[1747039465079,0.0813541,104480.0,104470.0,0.56015814]
[1747039465325,0.25363707,104480.0,104470.0,0.55058639]
[1747039465694,0.25363707,104480.0,104470.0,0.56015796]
[1747039465906,0.26320827,104480.0,104470.0,0.56015814]
[1747039466106,0.26320827,104480.0,104470.0,0.5697298]
[1747039466247,0.26320827,104480.0,104470.0,0.56015814]
[1747039466444,0.06221288,104480.0,104470.0,0.56972962]
[1747039466647,0.25363707,104480.0,104470.0,0.56015814]
[1747039466852,0.06221288,104480.0,104470.0,0.5697298]
[1747039467054,0.07178408,104480.0,104470.0,0.57930128]
[1747039467258,0.26320827,104480.0,104470.0,0.5697298]
[1747039467463,0.26320827,104480.0,104470.0,0.56015814]
[1747039467664,0.2440665,104480.0,104470.0,0.34]
[1747039470162,0.2440665,104480.0,104470.0,0.54101445]
[1747039471002,0.2440665,104480.0,104470.0,0.56015805]
[1747039471846,0.2440665,104480.0,104470.0,0.83827371]
[1747039472058,0.2440665,104480.0,104470.0,0.82870205]
[1747039472681,0.2440665,104480.0,104470.0,0.56015805]
[1747039473361,0.0526414,104480.0,104470.0,0.56972953]
[1747039473593,0.06221242,104480.0,104470.0,0.83827353]
[1747039473799,0.07178353,104480.0,104470.0,0.83827353]
[1747039474384,0.26320772,104480.0,104470.0,0.56015805]
[1747039474605,0.07178353,104480.0,104470.0,0.56972953]
[1747039475877,0.26320772,104480.0,104470.0,0.82870205]
[1747039476097,0.26320772,104480.0,104470.0,0.83827371]
[1747039476299,0.26320772,104480.0,104470.0,0.84784482]
[1747039476645,0.26320772,104480.0,104470.0,0.83827334]
[1747039477277,0.0526414,104480.0,104470.0,0.84784482]
[1747039477499,0.017,104480.0,104470.0,0.67515512]
[1747039477711,0.001,104480.0,104470.0,0.94369912]
[1747039477924,0.001,104480.0,104470.0,0.67515512]
[1747039478149,0.001,104480.0,104470.0,0.94369912]
[1747039478356,0.0161,104480.0,104470.0,0.94369912]
[1747039481090,0.0161,104480.0,104470.0,0.67515512]
[1747039481316,0.0161,104480.0,104470.0,0.94369912]
[1747039481488,0.001,104480.0,104470.0,0.94369912]
[1747039485025,0.001,104480.0,104470.0,0.95909912]
[1747039485221,0.001,104480.0,104470.0,1.37489912]
[1747039485846,0.001,104480.0,104470.0,1.38879912]
[1747039487374,0.001,104480.0,104470.0,2.57929312]
[1747039488155,0.001,104480.0,104470.0,2.84783712]
[1747039488357,0.001,104480.0,104470.0,1.38879912]
[1747039488764,0.001,104480.0,104470.0,3.37797212]
[1747039489205,0.001,104480.0,104470.0,2.62049612]
[1747039489422,0.001,104480.0,104470.0,2.36991212]
[1747039489642,0.001,104480.0,104470.0,2.10303112]
[1747039489845,0.001,104480.0,104470.0,1.77985512]
[1747039490054,0.0174,104480.0,104470.0,1.48690912]
[1747039490257,0.034,104480.0,104470.0,1.50197912]
[1747039490664,0.034,104480.0,104470.0,1.08617912]
[1747039492724,0.0174,104480.0,104470.0,1.08617912]
[1747039495182,0.001,104480.0,104470.0,1.08617912]
[1747039496489,0.0167,104480.0,104470.0,1.08617912]
[1747039496697,0.0167,104480.0,104470.0,1.50197912]
[1747039500858,0.001,104480.0,104470.0,1.51797912]
[1747039501292,0.001,104480.0,104470.0,1.53187912]
[1747039501409,0.001,104480.0,104470.0,1.77258912]
[1747039502073,0.001,104480.0,104470.0,2.04113312]
[1747039502281,0.001,104480.0,104470.0,2.02723312]
[1747039502515,0.001,104480.0,104470.0,2.04113312]
[1747039504003,0.001,104480.0,104470.0,1.80342312]
[1747039504535,0.004,104490.0,104480.0,0.5755367]
[1747039504718,0.004,104490.0,104480.0,3.711957]
[1747039504926,0.004,104490.0,104480.0,1.95153]
[1747039505151,0.0204,104490.0,104480.0,1.690743]
[1747039505821,0.0204,104490.0,104480.0,1.422199]
[1747039506039,0.0204,104490.0,104480.0,1.424199]
[1747039506431,0.0204,104490.0,104480.0,1.426199]
[1747039506631,0.0362,104490.0,104480.0,1.405393]
[1747039507028,0.0362,104490.0,104480.0,1.112793]
[1747039507241,0.0204,104490.0,104480.0,1.270299]
[1747039507476,0.0204,104490.0,104480.0,1.538843]
[1747039508229,0.0204,104490.0,104480.0,1.001755]
[1747039508450,0.0204,104490.0,104480.0,1.270299]
[1747039508610,0.0204,104490.0,104480.0,1.686099]
[1747039508815,0.004,104490.0,104480.0,1.967643]
[1747039509227,0.004,104490.0,104480.0,1.950643]
[1747039509703,0.0202,104490.0,104480.0,1.609879]
[1747039509883,0.0202,104490.0,104480.0,1.965741]
[1747039510085,0.036,104490.0,104480.0,1.697197]
[1747039510334,0.036,104490.0,104480.0,1.580903]
[1747039512578,0.04556946,104490.0,104480.0,1.341335]
[1747039512840,0.036,104490.0,104480.0,1.341335]
[1747039513330,0.05513948,104490.0,104480.0,1.072791]
[1747039513549,0.04556965,104490.0,104480.0,1.341335]
[1747039513792,0.25611546,104490.0,104480.0,1.06322044]
[1747039514039,0.25611601,104490.0,104480.0,0.97693734]
[1747039514277,0.2656863,104490.0,104480.0,0.97693734]
[1747039514528,0.2656863,104490.0,104480.0,0.97593734]
[1747039514737,0.2666863,104490.0,104480.0,0.56970809]
[1747039516064,0.25711601,104490.0,104480.0,0.57927875]
[1747039516282,0.2666863,104490.0,104480.0,0.83825209]
[1747039516711,0.24754636,104490.0,104480.0,0.54099539]
[1747039516950,0.24754636,104490.0,104480.0,0.56013725]
[1747039517191,0.24754636,104490.0,104480.0,0.569708]
[1747039517431,0.24754636,104490.0,104480.0,0.84782266]
[1747039518821,0.24754636,104490.0,104480.0,0.838252]
[1747039519517,0.24754636,104490.0,104480.0,0.84782266]
[1747039519960,0.24754636,104490.0,104480.0,0.838252]
[1747039520181,0.24754636,104490.0,104480.0,0.82868134]
[1747039520406,0.24754636,104490.0,104480.0,0.83825209]
[1747039520626,0.24754636,104490.0,104480.0,0.56013734]
[1747039521061,0.24754636,104490.0,104480.0,0.81911041]
[1747039521322,0.24754636,104490.0,104480.0,0.53142419]
[1747039521599,0.24754636,104490.0,104480.0,0.81911014]
[1747039521791,0.24754636,104490.0,104480.0,0.56013698]
[1747039521958,0.24754636,104490.0,104480.0,0.83825173]
[1747039522284,0.24754636,104490.0,104480.0,0.79996819]
[1747039522632,0.0095713,104470.0,104460.0,1.18196175]
[1747039522925,0.032,104470.0,104460.0,1.34994872]
[1747039523191,0.0163,104470.0,104460.0,1.34994872]
[1747039523424,0.0326,104470.0,104460.0,1.34994872]
[1747039523882,0.0326,104470.0,104460.0,1.35194872]
[1747039524206,0.0326,104470.0,104460.0,1.35394872]
[1747039524839,0.0326,104470.0,104460.0,1.08540472]
[1747039525061,0.0326,104470.0,104460.0,1.35394872]
[1747039525290,0.0326,104470.0,104460.0,1.35194872]
[1747039526253,0.0326,104470.0,104460.0,1.34994872]
[1747039526496,0.0326,104470.0,104460.0,1.35094872]
[1747039527886,0.0163,104470.0,104460.0,1.35094872]
[1747039528765,0.0326,104470.0,104460.0,1.35094872]
[1747039529172,0.03270959,104490.0,104480.0,0.5601367]
[1747039529386,0.03270959,104490.0,104480.0,0.8286807]
[1747039529638,0.04566956,104490.0,104480.0,0.8286807]
[1747039529810,0.05763194,104490.0,104480.0,0.8286807]
[1747039530029,0.06720186,104490.0,104480.0,0.8286807]
[1747039530273,0.05763194,104490.0,104480.0,0.8286807]
[1747039530709,0.05963194,104490.0,104480.0,0.8286807]
[1747039530974,0.06920177,104490.0,104480.0,0.8286807]
[1747039531399,0.05963194,104490.0,104480.0,0.8286807]
[1747039531619,0.05963194,104490.0,104480.0,0.5601367]
[1747039531620,0.06920177,104490.0,104480.0,0.5601367]
[1747039531874,0.06920177,104490.0,104480.0,0.8286807]
[1747039532726,0.07877169,104490.0,104480.0,0.55056614]
[1747039532939,0.07877169,104490.0,104480.0,0.8286807]
[1747039533174,0.07877169,104490.0,104480.0,0.5601367]
[1747039533388,0.26060837,104490.0,104480.0,0.55056614]
[1747039533600,0.05723975,104490.0,104480.0,0.8286807]
[1747039533810,0.05963239,104490.0,104480.0,0.8286807]
[1747039534018,0.0692025,104490.0,104480.0,0.8286807]
[1747039534260,0.0692024,104490.0,104480.0,0.8286807]
[1747039534471,0.0692025,104490.0,104480.0,0.8286807]
[1747039534692,0.0692025,104490.0,104480.0,0.5601367]
[1747039534904,0.07877279,104490.0,104480.0,0.83825145]
[1747039535125,0.26060837,104490.0,104480.0,0.83825145]
[1747039535335,0.06680986,104490.0,104480.0,0.83825145]
[1747039535567,0.0692025,104490.0,104480.0,0.83825145]
[1747039535741,0.0692025,104490.0,104480.0,0.83825155]
[1747039535958,0.07877251,104490.0,104480.0,0.57927811]
[1747039536105,0.07877251,104490.0,104480.0,0.84782211]
[1747039536341,0.27017838,104490.0,104480.0,0.56013689]
[1747039536547,0.07637987,104490.0,104480.0,0.57927811]
[1747039536761,0.08834271,104490.0,104480.0,0.57927811]
[1747039537364,0.08834271,104490.0,104480.0,0.84782211]
[1747039539038,0.08834271,104490.0,104480.0,0.57927811]
[1747039539329,0.08834271,104490.0,104480.0,0.85153273]
[1747039539522,0.08834271,104490.0,104480.0,0.58206107]
[1747039539730,0.08834271,104490.0,104480.0,0.57249051]
[1747039539961,0.08834271,104490.0,104480.0,0.57927811]
[1747039541168,0.27974858,104490.0,104480.0,0.56970755]
[1747039541370,0.26778611,104490.0,104480.0,0.84782211]
[1747039541803,0.06681004,104490.0,104480.0,0.84782211]
[1747039542159,0.06920269,104490.0,104480.0,0.84782211]
[1747039544687,0.07877289,104490.0,104480.0,0.84782211]
[1747039545113,0.27017876,104490.0,104480.0,0.84782211]
[1747039545342,0.26778611,104490.0,104480.0,0.84782211]
[1747039545789,0.06681004,104490.0,104480.0,0.84782211]
[1747039545992,0.06920269,104490.0,104480.0,0.84782211]
[1747039546626,0.07877289,104490.0,104480.0,0.84782211]
[1747039547241,0.27017913,104490.0,104480.0,0.8095393]
[1747039547443,0.25821647,104490.0,104480.0,0.5409953]
[1747039547657,0.25821647,104490.0,104480.0,0.5601368]
[1747039547880,0.05724031,104490.0,104480.0,0.56970736]
[1747039548085,0.05963296,104490.0,104480.0,0.83825136]
[1747039548911,0.25103883,104490.0,104480.0,0.8286808]
[1747039549124,0.05724031,104490.0,104480.0,0.8286808]
[1747039549333,0.05724031,104490.0,104480.0,0.7679899]
[1747039549334,0.05963296,104490.0,104480.0,0.7679899]
[1747039551650,0.25103883,104490.0,104480.0,0.7679899]
[1747039551865,0.24864618,104490.0,104480.0,0.7679899]
[1747039552137,0.25821647,104490.0,104480.0,0.75841934]
[1747039552864,0.25821647,104490.0,104480.0,0.5409953]
[1747039553115,0.05724031,104490.0,104480.0,0.75841924]
[1747039553322,0.24903898,104490.0,104480.0,0.75841924]
[1747039553531,0.25721647,104490.0,104480.0,0.74884868]
[1747039553743,0.25721647,104490.0,104480.0,0.75841943]
[1747039555280,0.24764636,104490.0,104480.0,0.55056614]
[1747039555492,0.24764636,104490.0,104480.0,0.74884886]
[1747039555780,0.24764636,104490.0,104480.0,0.76799063]
[1747039556059,0.24764636,104490.0,104480.0,0.75841979]
[1747039556242,0.24764636,104490.0,104480.0,0.76799063]
[1747039556507,0.24764636,104490.0,104480.0,0.75841979]
[1747039556941,0.23807616,104490.0,104480.0,0.75841979]
[1747039557508,0.23807616,104490.0,104480.0,0.73927784]
[1747039557713,0.22850587,104490.0,104480.0,0.74884886]
[1747039557913,0.22850587,104490.0,104480.0,0.72970673]
[1747039558248,0.22850587,104490.0,104480.0,0.34]
[1747039561015,0.22850587,104490.0,104480.0,0.72970673]
[1747039561234,0.0371,104490.0,104480.0,0.74884886]
[1747039561453,0.03076946,104490.0,104480.0,0.66556202]
[1747039561866,0.04033911,104490.0,104480.0,0.86384456]
[1747039562119,0.0212,104490.0,104480.0,0.86384456]